Cogmind - Beta 9.6 @@@ ROGUE MODE // 2020.08.29 @ 03:21:09 Player: Cracklepappy Result: Destroyed by S-27 Virus with Autogun Performance ------------- Evolutions (6) 3000 Regions Visited (24) 4800 Robots Destroyed (93) 465 Value Destroyed (4124) 4124 Prototype IDs (70) 1400 Alien Tech Used (0) 0 Bonus (206) 206 TOTAL SCORE: 13995 Bonus ------- Follower Combat Kills 755 Aligned with FarCom 300 Met Data Miner 300 Met Warlord at Base 500 MAIN.C Attacked Warlord 500 Friendly Fire -2149 Cogmind --------- Core Integrity 0/1150 Matter 130/300 Energy 76/100 System Corruption 1% Temperature Cool (0) Movement Flying (30) Location -4/Hub_04(d) Parts ------- > --- POWER (2) -------- (None) > --- PROPULSION (6) --- Improved Diametric Drive > --- UTILITY (9) ------ (None) > --- WEAPON (2) ------- Phasing Sabre > --- INVENTORY (4) ---- YI-UF0's Bottomless Matter Pit (1500) AWS/Gauss Peak State ------------ > --- POWER ------------ Micro Nuclear Core Micro Nuclear Core > --- PROPULSION ------- Experimental Cesium-ion Thruster Flying Fortress v7 Improved Diametric Drive > --- UTILITY ---------- Large Storage Unit Large Storage Unit Large Storage Unit Improved Energy Well Advanced Signal Interpreter Advanced Terrain Scan Processor Experimental Target Analyzer Experimental Phase Shifter Light Regenerative Plating > --- WEAPON ----------- KE Penetrator Railgun > --- INVENTORY -------- Micro Fission Core Vortex Chain Reactor Field Propulsion Array Improved Diametric Drive Advanced Heat Sink Experimental Heat Sink Medium Storage Unit YI-UF0's Bottomless Matter Pit Advanced Sensor Array Long-range Terrain Scanner Advanced ECM Suite Improved Force Field Improved System Shield Ghost Barrier 01-MTF's Autohacker AWS/Gauss Proton Missile Launcher Katana Great Axe [Rating: 124] Favorites ----------- Power Micro Nuclear Core Engine Ion Engine Power Core Micro Nuclear Core Reactor Vortex Chain Reactor Propulsion Light Treads Treads Light Treads Wheel Compact Wheel Hover Unit Cooled Gravmag System Flight Unit Flying Fortress v7 Utility Large Storage Unit Device Advanced Sensor Array Storage Large Storage Unit Processor Advanced Signal Interpreter Hackware Ghost Barrier Protection Light Regenerative Plating Weapon Katana Energy Gun EM Pulse Gun Energy Cannon Beam Cannon Ballistic Gun Autogun Launcher Improved Grenade Launcher Special Weapon Mining Laser Slashing Weapon Katana Build | -11 -10 -10 -10 -9 -8 -8 -7 -7 -7 -6 -6 -6 -6 -5 -5 -5 -5 -5 -4 -4 -4 -4 -4 -4 ------- Run | Scr Mat Min Exi Min Mat Sto Fac Was Fac Fac Low Low Dat Pro Fac Upp Upp War Pro Fac Ext Cet Arc Hub Slots Evolved 12 | . . . . . 4 . 2 . . 2 . . . . 2 . . . . 2 . . . . Power 1 | . . . . . . . 1 . . . . . . . . . . . . . . . . . Propulsion 4 | . . . . . 1 . 1 . . . . . . . 1 . . . . 1 . . . . Utility 7 | . . . . . 3 . . . . 2 . . . . 1 . . . . 1 . . . . Weapon . | . . . . . . . . . . . . . . . . . . . . . . . . . Parts Attached 219 | 6 11 1 1 2 36 30 34 . 8 2 . . . 9 14 . . 11 . 2 21 29 . 2 Power 23 | 1 . . . . 3 3 8 . . . . . . . 3 . . 3 . . 1 1 . . Engine 11 | 1 . . . . 1 3 5 . . . . . . . 1 . . . . . . . . . Core 10 | . . . . . 2 . 3 . . . . . . . 2 . . 2 . . 1 . . . Reactor 2 | . . . . . . . . . . . . . . . . . . 1 . . . 1 . . Propulsion 35 | 3 1 . . . 8 12 1 . . . . . . . 2 . . 1 . 1 . 6 . . Treads 19 | . 1 . . . 8 10 . . . . . . . . . . . . . . . . . . Leg . | . . . . . . . . . . . . . . . . . . . . . . . . . Wheel 3 | 3 . . . . . . . . . . . . . . . . . . . . . . . . Hover 1 | . . . . . . 1 . . . . . . . . . . . . . . . . . . Flight 12 | . . . . . . 1 1 . . . . . . . 2 . . 1 . 1 . 6 . . Utility 86 | 1 3 . 1 . 6 3 18 . 5 2 . . . 5 8 . . 4 . 1 15 13 . 1 Device 42 | . 1 . . . . 2 7 . 2 1 . . . 2 4 . . 2 . . 13 8 . . Storage 20 | 1 2 . 1 . 3 1 4 . 3 . . . . . 1 . . 1 . 1 . 1 . 1 Processor 4 | . . . . . 1 . 1 . . 1 . . . . . . . . . . 1 . . . Hackware 3 | . . . . . . . . . . . . . . 1 . . . . . . . 2 . . Protection 17 | . . . . . 2 . 6 . . . . . . 2 3 . . 1 . . 1 2 . . Artifact . | . . . . . . . . . . . . . . . . . . . . . . . . . Weapon 75 | 1 7 1 . 2 19 12 7 . 3 . . . . 4 1 . . 3 . . 5 9 . 1 Energy Gun 6 | 1 . . . . . 2 1 . . . . . . . . . . 2 . . . . . . Energy Cannon 2 | . 1 1 . . . . . . . . . . . . . . . . . . . . . . Ballistic Gun 33 | . 4 . . 2 11 6 3 . . . . . . . . . . . . . 2 5 . . Ballistic Cannon . | . . . . . . . . . . . . . . . . . . . . . . . . . Launcher 9 | . . . . . 2 . 1 . 1 . . . . 2 . . . . . . . 3 . . Special Weapon 3 | . 2 . . . 1 . . . . . . . . . . . . . . . . . . . Impact Weapon . | . . . . . . . . . . . . . . . . . . . . . . . . . Slashing Weapon 22 | . . . . . 5 4 2 . 2 . . . . 2 1 . . 1 . . 3 1 . 1 Piercing Weapon . | . . . . . . . . . . . . . . . . . . . . . . . . . Special Melee Weapon . | . . . . . . . . . . . . . . . . . . . . . . . . . Unidentified Prototypes 22 | . . . . . 1 9 1 . . . . . . . . . . 7 . . 1 2 . 1 Parts Lost 23 | . 1 . . . 3 1 2 . . . . . . . 1 . . . . . . 15 . . Power 5 | . . . . . 1 1 . . . . . . . . 1 . . . . . . 2 . . Propulsion 8 | . 1 . . . . . . . . . . . . . . . . . . . . 7 . . Utility 5 | . . . . . . . 1 . . . . . . . . . . . . . . 4 . . Weapon 5 | . . . . . 2 . 1 . . . . . . . . . . . . . . 2 . . Highest Loss Streak 6 | . 1 . . . 1 1 2 . . . . . . . 1 . . . . . . 6 . . Average Slot Usage (%) 79 | . 93 100 86 85 76 80 75 76 76 80 80 80 80 80 81 82 82 80 82 80 83 63 5 5 Engine 5 | . 14 14 14 14 3 8 6 . . . . . . . . . . . . . . . . . Core 5 | . . . . . 4 . 8 15 15 13 13 13 13 13 9 11 11 10 11 10 10 4 . . Treads 10 | . 9 14 14 14 23 26 . . . . . . . . . . . . . . . . . . Wheel 3 | . 15 14 14 14 3 . . . . . . . . . . . . . . . . . . . Flight 4 | . . . . . . . 6 7 7 6 6 6 6 6 11 11 11 10 11 15 15 19 5 5 Device 4 | . 1 . . . . . 6 7 7 13 13 13 13 12 13 11 11 11 11 10 7 10 . . Storage 18 | . 24 28 15 14 17 18 22 23 23 20 20 20 20 20 17 17 17 17 17 17 21 13 . . Processor 6 | . . . . . 5 8 6 7 7 13 13 13 13 13 11 11 11 11 11 10 14 5 . . Energy Cannon 2 | . 12 28 28 3 . . . . . . . . . . . . . . . . . . . . Ballistic Gun 8 | . 9 . . 24 15 13 4 . . . . . . . . . . . . . 5 2 . . Slashing Weapon 5 | . . . . . 1 4 6 7 14 13 13 13 13 12 11 11 11 10 11 10 4 1 . . Naked Turns 3 | . . . . . . . . . . . . . . . . . . . . . . 3 . . Heaviest Build 175 | 11 41 43 91 91 171 175 175 71 72 71 71 71 71 71 73 73 73 73 73 77 82 74 . 4 Greatest Support 88 | 32 32 16 16 16 68 68 72 72 72 72 72 72 72 72 79 79 79 81 81 88 88 88 9 9 Greatest Overweight (x) 6 | . 2 2 5 5 6 3 2 . . . . . . . . . . . . . . 3 . . Average Overweight (x) . | . 1 2 4 5 3 2 . . . . . . . . . . . . . . . . . . Largest Inventory Capacity 50 | 6 16 16 24 24 44 44 50 22 22 22 22 22 22 22 22 22 22 22 22 22 22 26 4 4 Average Capacity 27 | 5 13 16 22 24 35 44 22 22 22 22 22 22 22 22 22 22 22 22 22 22 22 11 4 4 Most Carried 44 | 6 16 16 24 24 44 44 44 22 22 22 22 22 22 22 22 22 22 22 22 22 22 22 4 4 Average Carried 26 | 4 12 16 20 23 32 43 22 22 21 20 22 22 22 21 21 22 22 21 22 21 21 10 4 3 Final Capacity 44 | 6 16 16 24 24 44 44 22 22 22 22 22 22 22 22 22 22 22 22 22 22 22 4 4 4 Final Carried 44 | 6 16 16 24 24 44 44 22 22 22 22 22 22 22 22 22 22 22 22 22 21 22 4 4 3 Class Distribution -------------------- 65% | Hauler-Mutant 20% | Hauler-Scout 8% | Mutant Dominant Class ---------------- Mutant | -10/Materials Mutant | -10/Mines Hauler-Mutant | -10/Exiles Hauler-Mutant | -9/Mines Hauler-Mutant | -8/Materials Hauler-Mutant | -8/Storage Hauler-Mutant | -7/Factory Hauler-Mutant | -7/Waste Hauler-Mutant | -7/Factory Hauler-Scout | -6/Factory Hauler-Scout | -6/Lower Caves Hauler-Scout | -6/Lower Caves Hauler-Scout | -6/Data Miner Hauler-Scout | -5/Proximity Caves Hauler-Scout | -5/Factory Hauler-Scout | -5/Upper Caves Hauler-Scout | -5/Upper Caves Hauler-Scout | -5/Warlord Hauler-Scout | -4/Proximity Caves Hauler-Scout | -4/Factory Hauler-Scout | -4/Extension Hacker-Sprinter | -4/Cetus Hacker-Sprinter | -4/Archives Sprinter | -4/Hub_04(d) Resources | -11 -10 -10 -10 -9 -8 -8 -7 -7 -7 -6 -6 -6 -6 -5 -5 -5 -5 -5 -4 -4 -4 -4 -4 -4 ----------- Run | Scr Mat Min Exi Min Mat Sto Fac Was Fac Fac Low Low Dat Pro Fac Upp Upp War Pro Fac Ext Cet Arc Hub Matter Collected 6036 | 260 244 . 268 60 1048 1419 630 382 . . 81 20 . 60 253 10 42 72 . . 888 299 . . Remotely . | . . . . . . . . . . . . . . . . . . . . . . . . . Salvage Created 4393 | 105 302 . . 116 951 834 518 . . . . . . 90 . . . . . . 524 953 . . Parts 229 | 5 13 . . 3 58 41 32 . . . . . . 7 . . . . . . 21 49 . . Haulers Intercepted 1 | . 1 . . . . . . . . . . . . . . . . . . . . . . . Recyclers Shooed 5 | . . . . 1 2 2 . . . . . . . . . . . . . . . . . . Parts Field Recycled . | . . . . . . . . . . . . . . . . . . . . . . . . . Retrieved Matter . | . . . . . . . . . . . . . . . . . . . . . . . . . Parts Self-Destructed 10 | . . . . . . . . . . . . . . 7 . . . 3 . . . . . . Prevented 6 | . . . . . . . . . . . . . . 2 . . . 4 . . . . . . Kills | -11 -10 -10 -10 -9 -8 -8 -7 -7 -7 -6 -6 -6 -6 -5 -5 -5 -5 -5 -4 -4 -4 -4 -4 -4 ------- Run | Scr Mat Min Exi Min Mat Sto Fac Was Fac Fac Low Low Dat Pro Fac Upp Upp War Pro Fac Ext Cet Arc Hub Combat Hostiles Destroyed 79 | . 8 . . . 22 13 12 . . . . . . 3 . . . . . . 7 14 . . Melee 4 | . . . . . . . 1 . . . . . . 1 . . . . . . 2 . . . Guns 51 | . 1 . . . 14 13 8 . . . . . . . . . . . . . 5 10 . . Cannons 7 | . 7 . . . . . . . . . . . . . . . . . . . . . . . AOE 13 | . . . . . 8 . 3 . . . . . . 2 . . . . . . . . . . Classes Destroyed 13 | 2 3 . . . 5 1 2 . . . . . . . . . . . . . . . . . Builder 1 | . . . . . 1 . . . . . . . . . . . . . . . . . . . Tunneler 1 | 1 . . . . . . . . . . . . . . . . . . . . . . . . Hauler 1 | . 1 . . . . . . . . . . . . . . . . . . . . . . . Recycler 4 | 1 . . . . 2 . 1 . . . . . . . . . . . . . . . . . Operator 1 | . . . . . . . 1 . . . . . . . . . . . . . . . . . Watcher 4 | . . . . . 1 1 . . . . . . . . . . . . . . . 2 . . Swarmer 24 | . 3 . . . 8 . 6 . . . . . . 3 . . . . . . . 4 . . Grunt 27 | . 5 . . . 4 9 5 . . . . . . . . . . . . . 4 . . . Brawler 1 | . . . . . . 1 . . . . . . . . . . . . . . . . . . Duelist 1 | . . . . . 1 . . . . . . . . . . . . . . . . . . . Sentry 10 | . . . . . 6 3 . . . . . . . . . . . . . . 1 . . . Hunter 7 | . . . . . 3 . . . . . . . . . . . . . . . 2 2 . . Programmer 1 | . . . . . . . 1 . . . . . . . . . . . . . . . . . Cetus Guard 8 | . . . . . . . . . . . . . . . . . . . . . . 8 . . Best Kill Streak 7 | 1 4 . . . 6 4 6 . . . . . . 3 . . . . . . 3 7 . . Combat Bots Only 7 | . 3 . . . 5 4 6 . . . . . . 3 . . . . . . 3 7 . . Max Kills in Single Turn 3 | 1 1 . . 1 3 1 2 . . . . . . 2 . . . . . . 1 2 . . Gunslinging . | . . . . . . . . . . . . . . . . . . . . . . . . . Exploded 3 | . . . . . 3 . 2 . . . . . . 2 . . . . . . . . . . Melee 1 | . . . . . . . 1 . . . . . . 1 . . . . . . 1 . . . Uniques/NPCs Destroyed 2 | . . . . 1 . 1 . . . . . . . . . . . . . . . . . . YI-UF0 (-9/Mines) 01-MTF (-8/Storage) Combat | -11 -10 -10 -10 -9 -8 -8 -7 -7 -7 -6 -6 -6 -6 -5 -5 -5 -5 -5 -4 -4 -4 -4 -4 -4 -------- Run | Scr Mat Min Exi Min Mat Sto Fac Was Fac Fac Low Low Dat Pro Fac Upp Upp War Pro Fac Ext Cet Arc Hub Damage Taken 8414 | . 231 . . . 1444 667 1151 117 55 19 . . 136 720 77 223 . 38 18 . 603 2650 149 116 Core 1784 | . 50 . . . 159 60 84 33 50 . . . 45 88 38 15 . . . . 169 742 149 102 Absorbed by Shields 51 | . . . . . . . . . . . . . . . . . . . . . 51 . . . Core Remaining (%) 82 | 100 . . . 80 . 60 . . 76 . . . . 84 . . . . 94 . . . . . Volleys Fired 281 | 14 40 . . 5 82 49 29 . . . . . . 6 . . . . . . 15 41 . . Largest 2 | 1 2 . . 2 2 2 2 . . . . . . 1 . . . . . . 2 1 . . Hottest 100 | 40 100 . . 46 100 50 78 . . . . . . 39 . . . . . . 68 39 . . Shots Fired 486 | 14 74 . . 10 157 96 41 . 1 . . . . 6 . . . . . . 30 57 . . Gun 421 | 14 34 . . 10 151 96 39 . . . . . . . . . . . . . 30 47 . . Cannon 34 | . 34 . . . . . . . . . . . . . . . . . . . . . . . Launcher 23 | . . . . . 4 . 2 . 1 . . . . 6 . . . . . . . 10 . . Special 8 | . 6 . . . 2 . . . . . . . . . . . . . . . . . . . Kinetic 400 | . 34 . . 10 151 96 32 . . . . . . . . . . . . . 30 47 . . Thermal 49 | . 40 . . . 2 . 7 . . . . . . . . . . . . . . . . . Explosive 7 | . . . . . 4 . 2 . 1 . . . . . . . . . . . . . . . Electromagnetic 30 | 14 . . . . . . . . . . . . . 6 . . . . . . . 10 . . Robot Hit Streak 24 | 3 6 . . 6 24 23 19 . . . . . . . . . . . . . 5 9 . . Robot Miss Streak 4 | 1 4 . . 1 4 2 2 . . . . . . 2 . . . . . . 3 3 . . Penetration Max 1 | . . . . . . . . . . . . . . . . . . . . . 1 1 . . Secondary Targets 4 | . . . . . 2 1 . . . . . . . . . . . . . . 1 . . . Max Gunslinging Chain 1 | . . . . . 1 1 . . . . . . . . . . . . . . 1 . . . Autonomous 16 | . . . . . . . . . . . . . . . . . . . . . . 16 . . Shots Hit Robots 344 | 9 35 . . 8 107 70 43 . 1 . . . . 2 1 . . . . . 25 43 . . Core Hits 184 | 3 15 . . 6 52 30 25 . . . . . . 3 . . . . . . 16 34 . . Critical Hits 19 | . . . . . 1 2 . . . . . . . . . . . . . . 7 9 . . Critical Kills 12 | . . . . . . 2 . . . . . . . . . . . . . . 4 6 . . Critical Parts Destroyed 7 | . . . . . 1 . . . . . . . . . . . . . . . 3 3 . . Melee Attacks 270 | . . . . . 7 8 78 1 55 8 3 3 10 9 42 8 3 1 4 3 23 2 . 2 Impact . | . . . . . . . . . . . . . . . . . . . . . . . . . Slashing 270 | . . . . . 7 8 78 1 55 8 3 3 10 9 42 8 3 1 4 3 23 2 . 2 Piercing . | . . . . . . . . . . . . . . . . . . . . . . . . . Sneak Attacks 5 | . . . . . . 3 1 . . . . . . . . . . . . . 1 . . . Combat Hostiles . | . . . . . . . . . . . . . . . . . . . . . . . . . Follow-up Attacks 2 | . . . . . . . . . 1 . . . . 1 . . . . . . . . . . Damage Inflicted 8381 | 133 488 . . 110 2007 1376 1099 . 32 . . . . 215 56 . . . . . 1038 1827 . . Guns 5104 | 133 85 . . 110 1491 1091 553 . . . . . . . . . . . . . 669 972 . . Cannons 403 | . 403 . . . . . . . . . . . . . . . . . . . . . . . Explosions 1710 | . . . . . 516 . 200 . . . . . . 139 . . . . . . . 855 . . Melee 1164 | . . . . . . 285 346 . 32 . . . . 76 56 . . . . . 369 . . . Ramming . | . . . . . . . . . . . . . . . . . . . . . . . . . Kinetic 4890 | . 85 . . 110 1491 1091 472 . . . . . . . . . . . . . 669 972 . . Thermal 484 | . 403 . . . . . 81 . . . . . . . . . . . . . . . . . Explosive 716 | . . . . . 516 . 200 . . . . . . . . . . . . . . . . . Electromagnetic 1127 | 133 . . . . . . . . . . . . . 139 . . . . . . . 855 . . Impact . | . . . . . . . . . . . . . . . . . . . . . . . . . Slashing 1164 | . . . . . . 285 346 . 32 . . . . 76 56 . . . . . 369 . . . Piercing . | . . . . . . . . . . . . . . . . . . . . . . . . . Highest Corruption 11 | . . . . . . 1 . 11 11 . . . . . . . . 1 . . . 1 1 1 Average Corruption 4 | . . . . . . 1 . 5 11 . . . . . . . . 1 . . . 1 1 1 Corruption Purged . | . . . . . . . . . . . . . . . . . . . . . . . . . Effects 65 | . . . . . . 7 . 1 57 . . . . . . . . . . . . . . . Message Errors 16 | . . . . . . 4 . . 12 . . . . . . . . . . . . . . . Matter Fused 9 | . . . . . . . . . 9 . . . . . . . . . . . . . . . Heat Flow Errors 3 | . . . . . . . . . 3 . . . . . . . . . . . . . . . Energy Discharges 3 | . . . . . . 1 . 1 1 . . . . . . . . . . . . . . . Data Loss (minor) 5 | . . . . . . . . . 5 . . . . . . . . . . . . . . . Misfires 1 | . . . . . . . . . 1 . . . . . . . . . . . . . . . Alerts 2 | . . . . . . . . . 2 . . . . . . . . . . . . . . . Misdirections 15 | . . . . . . . . . 15 . . . . . . . . . . . . . . . Targeting Errors 11 | . . . . . . 2 . . 9 . . . . . . . . . . . . . . . Overload Shots . | . . . . . . . . . . . . . . . . . . . . . . . . . Overflow Damage 237 | . . . . . 32 64 56 . . . . . . 6 6 . . . . . 63 10 . . Projectiles . | . . . . . . . . . . . . . . . . . . . . . . . . . Explosions 60 | . . . . . 32 . 12 . . . . . . 6 . . . . . . . 10 . . Melee 177 | . . . . . . 64 44 . . . . . . . 6 . . . . . 63 . . . Knockbacks . | . . . . . . . . . . . . . . . . . . . . . . . . . Impact . | . . . . . . . . . . . . . . . . . . . . . . . . . Kinetic . | . . . . . . . . . . . . . . . . . . . . . . . . . Secondary . | . . . . . . . . . . . . . . . . . . . . . . . . . Self-Inflicted Damage 209 | . . . . . 75 . 27 . 50 . . . . 57 . . . . . . . . . . Shots 8 | . . . . . 2 . 1 . 1 . . . . 4 . . . . . . . . . . Rammed . | . . . . . . . . . . . . . . . . . . . . . . . . . Targets Rammed . | . . . . . . . . . . . . . . . . . . . . . . . . . Kicked . | . . . . . . . . . . . . . . . . . . . . . . . . . Crushed . | . . . . . . . . . . . . . . . . . . . . . . . . . Highest Temperature 378 | . 280 . . 12 33 27 378 . 235 . . . . 51 1 . . 4 . . 288 83 . . Average Temperature 70 | . 71 . . 5 14 10 111 . 83 . . . . 21 1 . . 4 . . 133 51 . . Received Heat Transfer 1354 | . 75 . . . 252 315 225 . . . . . 18 72 9 . . 9 . . 85 276 18 . Effects 1 | . . . . . . . . . . . . . . . . . . . . . 1 . . . Energy Bleed 1 | . . . . . . . . . . . . . . . . . . . . . 1 . . . Siege Activations . | . . . . . . . . . . . . . . . . . . . . . . . . . Robots Corrupted 4 | . . . . . . . . . . . . . . . . . . . . . . 4 . . Combat Hostiles 4 | . . . . . . . . . . . . . . . . . . . . . . 4 . . Parts Fried 8 | . . . . . . . . . . . . . . 1 . . . . . . . 7 . . Impact Corruptions . | . . . . . . . . . . . . . . . . . . . . . . . . . Robots Melted . | . . . . . . . . . . . . . . . . . . . . . . . . . Combat Hostiles . | . . . . . . . . . . . . . . . . . . . . . . . . . Parts Melted . | . . . . . . . . . . . . . . . . . . . . . . . . . Heat Transferred 999 | . 851 . . . . . 148 . . . . . . . . . . . . . . . . . Parts Sabotaged . | . . . . . . . . . . . . . . . . . . . . . . . . . Parts Stolen . | . . . . . . . . . . . . . . . . . . . . . . . . . Parts Stripped . | . . . . . . . . . . . . . . . . . . . . . . . . . Power Chain Reactions . | . . . . . . . . . . . . . . . . . . . . . . . . . Missiles Intercepted . | . . . . . . . . . . . . . . . . . . . . . . . . . Alert | -11 -10 -10 -10 -9 -8 -8 -7 -7 -7 -6 -6 -6 -6 -5 -5 -5 -5 -5 -4 -4 -4 -4 -4 -4 ------- Run | Scr Mat Min Exi Min Mat Sto Fac Was Fac Fac Low Low Dat Pro Fac Upp Upp War Pro Fac Ext Cet Arc Hub Peak Influence 497 | 10 232 . . . 390 486 167 34 91 99 . . . . 497 . . . . 6 192 296 158 89 Average Influence 129 | 3 69 . . . 210 214 92 15 35 41 . . . . 170 . . . . 3 58 193 125 69 Maximum Alert Level 2 | . 1 . . . 1 2 . . . . . . . . 2 . . . . . . 1 . . Low Security (%) 77 | 100 94 100 . 100 42 62 100 100 100 100 . . . . 74 . . . . 100 100 53 100 100 Level 1 18 | . 5 . . . 57 27 . . . . . . . . 10 . . . . . . 46 . . Level 2 3 | . . . . . . 10 . . . . . . . . 14 . . . . . . . . . Level 3 . | . . . . . . . . . . . . . . . . . . . . . . . . . Level 4 . | . . . . . . . . . . . . . . . . . . . . . . . . . Level 5 . | . . . . . . . . . . . . . . . . . . . . . . . . . High Security . | . . . . . . . . . . . . . . . . . . . . . . . . . Max Security . | . . . . . . . . . . . . . . . . . . . . . . . . . Squads Dispatched 16 | . 3 . . . 4 2 6 . . . . . . . 1 . . . . . . . . . Investigation 4 | . 2 . . . . . 2 . . . . . . . . . . . . . . . . . Extermination 1 | . . . . . . . 1 . . . . . . . . . . . . . . . . . Reinforcement 4 | . 1 . . . 1 1 . . . . . . . . 1 . . . . . . . . . Assault 1 | . . . . . . 1 . . . . . . . . . . . . . . . . . . Garrison 6 | . . . . . 3 . 3 . . . . . . . . . . . . . . . . . Intercept . | . . . . . . . . . . . . . . . . . . . . . . . . . Construction Impeded . | . . . . . . . . . . . . . . . . . . . . . . . . . Haulers Reinforced . | . . . . . . . . . . . . . . . . . . . . . . . . . Stealth | -11 -10 -10 -10 -9 -8 -8 -7 -7 -7 -6 -6 -6 -6 -5 -5 -5 -5 -5 -4 -4 -4 -4 -4 -4 --------- Run | Scr Mat Min Exi Min Mat Sto Fac Was Fac Fac Low Low Dat Pro Fac Upp Upp War Pro Fac Ext Cet Arc Hub Distress Signals 11 | . 1 . . . 1 1 2 . 1 . . . . . 1 . . . . . 1 2 . 1 Communications Jammed . | . . . . . . . . . . . . . . . . . . . . . . . . . Distress Signals . | . . . . . . . . . . . . . . . . . . . . . . . . . Times Spotted 207 | . 18 . . . 29 29 18 6 5 2 . . 4 19 7 5 . 7 2 . 13 28 4 11 Peak Tracking Total 13 | . 4 . . . 5 5 5 3 4 2 . . 4 8 3 5 . 13 2 . 5 9 4 13 Tactical Retreats 29 | . 1 . . . 2 2 3 . 3 1 . . . 7 3 3 . . 1 . 2 1 . . Traps | -11 -10 -10 -10 -9 -8 -8 -7 -7 -7 -6 -6 -6 -6 -5 -5 -5 -5 -5 -4 -4 -4 -4 -4 -4 ------- Run | Scr Mat Min Exi Min Mat Sto Fac Was Fac Fac Low Low Dat Pro Fac Upp Upp War Pro Fac Ext Cet Arc Hub Traps Triggered 13 | . 1 . . . 1 5 2 . . . . . . . 1 . . . . . 3 . . . Indirectly . | . . . . . . . . . . . . . . . . . . . . . . . . . Trap Hack Attempts . | . . . . . . . . . . . . . . . . . . . . . . . . . Triggered . | . . . . . . . . . . . . . . . . . . . . . . . . . Disarmed 6 | . . . . . . 6 . . . . . . . . . . . . . . . . . . Reprogrammed . | . . . . . . . . . . . . . . . . . . . . . . . . . Reused . | . . . . . . . . . . . . . . . . . . . . . . . . . Traps Extracted . | . . . . . . . . . . . . . . . . . . . . . . . . . Installed . | . . . . . . . . . . . . . . . . . . . . . . . . . Triggered 9 | . . . . . . . . . . . . . . 3 . . . 6 . . . . . . Machines | -11 -10 -10 -10 -9 -8 -8 -7 -7 -7 -6 -6 -6 -6 -5 -5 -5 -5 -5 -4 -4 -4 -4 -4 -4 ---------- Run | Scr Mat Min Exi Min Mat Sto Fac Was Fac Fac Low Low Dat Pro Fac Upp Upp War Pro Fac Ext Cet Arc Hub Machines Disabled 9 | . . . . . . 6 . . 1 . . . 1 . . . . . . . . 1 . . Max in Single Turn 1 | . . . . . . 1 . . 1 . . . 1 . . . . . . . . 1 . . Garrison Access 4 | . . . . . . 1 1 . 1 . . . . . 1 . . . . . . . . . Machines Sabotaged . | . . . . . . . . . . . . . . . . . . . . . . . . . Garrisons Compromised . | . . . . . . . . . . . . . . . . . . . . . . . . . Overloaded Fab Kills . | . . . . . . . . . . . . . . . . . . . . . . . . . Fab Network Shutdowns 1 | . . . . . . . . . . . . . . . 1 . . . . . . . . . Hacking | -11 -10 -10 -10 -9 -8 -8 -7 -7 -7 -6 -6 -6 -6 -5 -5 -5 -5 -5 -4 -4 -4 -4 -4 -4 --------- Run | Scr Mat Min Exi Min Mat Sto Fac Was Fac Fac Low Low Dat Pro Fac Upp Upp War Pro Fac Ext Cet Arc Hub Machines Accessed 64 | . 5 . 1 . 6 6 10 . 7 3 . 1 4 1 6 . . 7 . . 4 1 . 2 Terminals 40 | . 5 . . . 6 5 5 . 5 3 . . . 1 3 . . . . . 4 1 . 2 Fabricators 1 | . . . . . . . . . . . . . . . 1 . . . . . . . . . Repair Stations . | . . . . . . . . . . . . . . . . . . . . . . . . . Recycling Units . | . . . . . . . . . . . . . . . . . . . . . . . . . Scanalyzers 2 | . . . . . . . 1 . . . . . . . 1 . . . . . . . . . Garrison Access 8 | . . . . . . 1 4 . 2 . . . . . 1 . . . . . . . . . Total Hacks 155 | . 14 . 1 . 16 13 18 . 16 9 . 1 32 1 11 . . 8 . . 10 2 . 3 Successful 96 | . 11 . 1 . 10 7 5 . 5 4 . 1 32 . 6 . . 8 . . 5 1 . . Failed 59 | . 3 . . . 6 6 13 . 11 5 . . . 1 5 . . . . . 5 1 . 3 Catastrophic 16 | . 1 . . . 1 2 3 . 6 3 . . . . . . . . . . . . . . Database Lockouts . | . . . . . . . . . . . . . . . . . . . . . . . . . Manual 49 | . 5 . 1 . 9 5 6 . 7 3 . . . 1 4 . . 2 . . 4 . 2 . Terminals 96 | . 14 . . . 16 12 8 . 14 9 . . . 1 7 . . . . . 10 2 . 3 Fabricators 2 | . . . . . . . . . . . . . . . 2 . . . . . . . . . Repair Stations . | . . . . . . . . . . . . . . . . . . . . . . . . . Recycling Units . | . . . . . . . . . . . . . . . . . . . . . . . . . Scanalyzers 3 | . . . . . . . 2 . . . . . . . 1 . . . . . . . . . Garrison Access 12 | . . . . . . 1 8 . 2 . . . . . 1 . . . . . . . . . Terminal Hacks 86 | . 11 . 1 . 10 6 2 . 3 4 . 1 32 . 2 . . 8 . . 5 1 . . Record 19 | . . . . . . . . . . . . . 11 . . . . 7 . . . 1 . . Part Schematic 14 | . 1 . . . 2 . . . . . . . 11 . . . . . . . . . . . Robot Schematic 7 | . . . . . . . . . . . . . 7 . . . . . . . . . . . Robot Analysis 1 | . . . . . . . . . . 1 . . . . . . . . . . . . . . Prototype ID Bank 9 | . 4 . . . . . 1 . . 1 . . 3 . . . . . . . . . . . Open Door 5 | . . . . . . 1 . . . . . 1 . . . . . 1 . . 2 . . . Level Access Points 1 | . . . . . 1 . . . . . . . . . . . . . . . . . . . Branch Access Points 3 | . 1 . . . 1 . . . . 1 . . . . . . . . . . . . . . Terminal Index 1 | . . . . . . . . . 1 . . . . . . . . . . . . . . . Unreport Threat 8 | . 1 . . . 2 2 . . . 1 . . . . . . . . . . 2 . . . Locate Traps 7 | . 1 . . . . 1 1 . 2 . . . . . 1 . . . . . 1 . . . Disarm Traps 1 | . . . . . . 1 . . . . . . . . . . . . . . . . . . Recall Investigation 1 | . 1 . . . . . . . . . . . . . . . . . . . . . . . Recall Assault 1 | . . . . . . . . . . . . . . . 1 . . . . . . . . . Hauler Manifests 3 | . . . . . 2 1 . . . . . . . . . . . . . . . . . . Zone Layout 4 | . 2 . . . 2 . . . . . . . . . . . . . . . . . . . EX-Prototype ID Bank 1 | . . . 1 . . . . . . . . . . . . . . . . . . . . . Fabricator Hacks 2 | . . . . . . . . . . . . . . . 2 . . . . . . . . . Load Schematic 1 | . . . . . . . . . . . . . . . 1 . . . . . . . . . Build 1 | . . . . . . . . . . . . . . . 1 . . . . . . . . . Repair Station Hacks . | . . . . . . . . . . . . . . . . . . . . . . . . . Recycling Unit Hacks . | . . . . . . . . . . . . . . . . . . . . . . . . . Scanalyzer 1 | . . . . . . . 1 . . . . . . . . . . . . . . . . . Insert Component 1 | . . . . . . . 1 . . . . . . . . . . . . . . . . . Garrison Access Hacks 4 | . . . . . . 1 1 . 1 . . . . . 1 . . . . . . . . . Seal Access 4 | . . . . . . 1 1 . 1 . . . . . 1 . . . . . . . . . Unauthorized Hacks 3 | . . . . . . . 1 . 1 . . . . . 1 . . . . . . . . . Terminals 3 | . . . . . . . 1 . 1 . . . . . 1 . . . . . . . . . Assimilate 3 | . . . . . . . 1 . 1 . . . . . 1 . . . . . . . . . Fabricators . | . . . . . . . . . . . . . . . . . . . . . . . . . Repair Stations . | . . . . . . . . . . . . . . . . . . . . . . . . . Recycling Units . | . . . . . . . . . . . . . . . . . . . . . . . . . Scanalyzers . | . . . . . . . . . . . . . . . . . . . . . . . . . Garrison Access . | . . . . . . . . . . . . . . . . . . . . . . . . . Data Cores Recovered 1 | . . . . . . . 1 . . . . . . . . . . . . . . . . . Used 1 | . . . . . . . 1 . . . . . . . . . . . . . . . . . Hacking Detections 40 | . 4 . . . 5 4 9 . 5 3 . . . . 5 . . . . . 2 1 . 2 Full Trace Events 3 | . 1 . . . . . 2 . . . . . . . . . . . . . . . . . Feedback Events . | . . . . . . . . . . . . . . . . . . . . . . . . . Feedback Blocked . | . . . . . . . . . . . . . . . . . . . . . . . . . Robot Schematics Acquired 7 | . . . . . . . . . . . . . 7 . . . . . . . . . . . Robots Built . | . . . . . . . . . . . . . . . . . . . . . . . . . Matter . | . . . . . . . . . . . . . . . . . . . . . . . . . Time . | . . . . . . . . . . . . . . . . . . . . . . . . . Total Robot Build Rating . | . . . . . . . . . . . . . . . . . . . . . . . . . Part Schematics Acquired 14 | . 1 . . . 2 . . . . . . . 11 . . . . . . . . . . . Parts Built 1 | . . . . . . . . . . . . . . . 1 . . . . . . . . . Matter 285 | . . . . . . . . . . . . . . . 285 . . . . . . . . . Time 152 | . . . . . . . . . . . . . . . 152 . . . . . . . . . Total Part Build Rating 5 | . . . . . . . . . . . . . . . 5 . . . . . . . . . Parts Repaired . | . . . . . . . . . . . . . . . . . . . . . . . . . Time . | . . . . . . . . . . . . . . . . . . . . . . . . . Parts Recycled . | . . . . . . . . . . . . . . . . . . . . . . . . . Recycled Matter . | . . . . . . . . . . . . . . . . . . . . . . . . . Retrieved Matter . | . . . . . . . . . . . . . . . . . . . . . . . . . Retrieved Components . | . . . . . . . . . . . . . . . . . . . . . . . . . Parts Scanalyzed 1 | . . . . . . . 1 . . . . . . . . . . . . . . . . . Part Schematics Acquired . | . . . . . . . . . . . . . . . . . . . . . . . . . Parts Damaged . | . . . . . . . . . . . . . . . . . . . . . . . . . Bothacking | -11 -10 -10 -10 -9 -8 -8 -7 -7 -7 -6 -6 -6 -6 -5 -5 -5 -5 -5 -4 -4 -4 -4 -4 -4 ------------ Run | Scr Mat Min Exi Min Mat Sto Fac Was Fac Fac Low Low Dat Pro Fac Upp Upp War Pro Fac Ext Cet Arc Hub Used RIF Installer . | . . . . . . . . . . . . . . . . . . . . . . . . . Robots Hacked . | . . . . . . . . . . . . . . . . . . . . . . . . . Non-combat . | . . . . . . . . . . . . . . . . . . . . . . . . . Combat . | . . . . . . . . . . . . . . . . . . . . . . . . . Robot Hacks Applied . | . . . . . . . . . . . . . . . . . . . . . . . . . Relay Couplers Released 1 | . . . . . . 1 . . . . . . . . . . . . . . . . . . Machine Destruction 1 | . . . . . . 1 . . . . . . . . . . . . . . . . . . Robots Rewired 2 | . . . . . . . . . . . . . . . . . . . . . 2 . . . Allies Hacked . | . . . . . . . . . . . . . . . . . . . . . . . . . Hacks Repelled . | . . . . . . . . . . . . . . . . . . . . . . . . . Allies | -11 -10 -10 -10 -9 -8 -8 -7 -7 -7 -6 -6 -6 -6 -5 -5 -5 -5 -5 -4 -4 -4 -4 -4 -4 -------- Run | Scr Mat Min Exi Min Mat Sto Fac Was Fac Fac Low Low Dat Pro Fac Upp Upp War Pro Fac Ext Cet Arc Hub Total Allies 44 | . . . . . . 12 1 20 1 . . . . . 1 . . . . . 9 . . . Largest Group 20 | . . . . . . 11 1 20 1 . . . . . 1 . . . . . 7 . . . Highest-Rated Group 518 | . . . . . . 272 26 518 26 . . . . . 23 . . . . . 400 . . . Highest-Rated Ally 156 | . . . . . . 99 26 35 26 . . . . . 23 . . . . . 156 . . . Total Orders 7 | . . . . . . 3 1 . 1 . . . . . 1 . . . . . 1 . . . STAY 4 | . . . . . . 1 1 . 1 . . . . . 1 . . . . . . . . . GOTO 2 | . . . . . . 1 . . . . . . . . . . . . . . 1 . . . FOLLOW 1 | . . . . . . 1 . . . . . . . . . . . . . . . . . . Ally Attacks 252 | . . . . . . 55 . 143 . . . . . . . . . . . . 54 . . . Total Damage 8691 | . . . . . . 1223 . 6028 . . . . . . . . . . . . 1440 . . . Kills 38 | . . . . . . 16 . 17 . . . . . . . . . . . . 5 . . . Allies Corrupted . | . . . . . . . . . . . . . . . . . . . . . . . . . Allies Melted . | . . . . . . . . . . . . . . . . . . . . . . . . . Intel | -11 -10 -10 -10 -9 -8 -8 -7 -7 -7 -6 -6 -6 -6 -5 -5 -5 -5 -5 -4 -4 -4 -4 -4 -4 ------- Run | Scr Mat Min Exi Min Mat Sto Fac Was Fac Fac Low Low Dat Pro Fac Upp Upp War Pro Fac Ext Cet Arc Hub Robot Analysis Total 1 | . . . . . . . . . . 1 . . . . . . . . . . . . . . Derelict Logs Recovered 5 | . . . . 2 . . . . . . 1 1 . 1 . . . . . . . . . . Drone Launches . | . . . . . . . . . . . . . . . . . . . . . . . . . Drone Recoveries . | . . . . . . . . . . . . . . . . . . . . . . . . . Exploration | -11 -10 -10 -10 -9 -8 -8 -7 -7 -7 -6 -6 -6 -6 -5 -5 -5 -5 -5 -4 -4 -4 -4 -4 -4 ------------- Run | Scr Mat Min Exi Min Mat Sto Fac Was Fac Fac Low Low Dat Pro Fac Upp Upp War Pro Fac Ext Cet Arc Hub Turns Passed 13344 | 90 868 27 681 944 2077 2344 1779 126 904 214 110 145 76 262 934 146 69 264 123 62 677 350 15 57 Spaces Moved 13622 | 49 593 22 456 612 921 900 2533 200 1456 375 202 274 97 407 1469 325 188 647 293 132 960 297 50 164 Core 8 | 2 . . . . . . . . . . . . . . . . . . . . . 6 . . Treads 1460 | . . . . . 548 900 12 . . . . . . . . . . . . . . . . . Legs . | . . . . . . . . . . . . . . . . . . . . . . . . . Wheels 2103 | 47 593 22 456 612 373 . . . . . . . . . . . . . . . . . . . Hover . | . . . . . . . . . . . . . . . . . . . . . . . . . Flight 10051 | . . . . . . . 2521 200 1456 375 202 274 97 407 1469 325 188 647 293 132 960 291 50 164 Fastest Speed 22 | 50 100 120 100 150 150 190 50 50 50 50 50 50 50 50 34 34 34 34 37 29 29 22 30 30 Average Speed 73 | 91 114 120 144 150 175 198 50 50 50 50 50 50 50 50 35 34 34 35 37 29 29 34 30 30 Slowest Speed 257 | 100 120 120 150 150 220 220 195 50 50 50 50 50 50 50 39 34 34 37 37 29 37 257 30 30 Overloaded Moves . | . . . . . . . . . . . . . . . . . . . . . . . . . Propulsion Burnouts . | . . . . . . . . . . . . . . . . . . . . . . . . . Robots Hopped 28 | . . . . . . . 4 . 2 1 . . 1 . 5 . . 5 . . 8 2 . . Cave-ins Triggered . | . . . . . . . . . . . . . . . . . . . . . . . . . Exploration Rate (%) 55 | 3 88 5 78 96 70 87 51 83 48 13 42 55 72 67 39 61 37 78 48 5 75 87 65 33 Regions Visited 24 Branch Regions 16 Pre-discovered Areas 4 | . . . . 1 . . . . . . 1 1 1 . . . . . . . . . . . Known Exits Taken 16 | . 1 . . . 1 1 . . 1 1 1 1 1 1 1 1 1 1 1 1 1 . . . Unknown Exits Taken 6 | 1 . 1 1 1 . . . . . . . . . . . . . . . . . 1 1 . Scrap Searched 7 | . . . . 1 . . . . . . 2 1 . . . 1 2 . . . . . . . Spaces Dug 224 | . 6 . . . 24 2 67 1 41 7 3 3 5 5 33 5 2 1 3 3 11 . . 2 Terrain Destroyed 307 | . 6 . . . 47 2 91 1 47 7 3 3 5 5 33 5 2 1 3 3 20 21 . 2 Melee 201 | . . . . . 7 2 67 1 41 7 3 3 5 5 33 5 2 1 3 3 11 . . 2 Projectile 38 | . 6 . . . 2 . . . . . . . . . . . . . . . 9 21 . . AOE 68 | . . . . . 38 . 24 . 6 . . . . . . . . . . . . . . . Actions | -11 -10 -10 -10 -9 -8 -8 -7 -7 -7 -6 -6 -6 -6 -5 -5 -5 -5 -5 -4 -4 -4 -4 -4 -4 --------- Run | Scr Mat Min Exi Min Mat Sto Fac Was Fac Fac Low Low Dat Pro Fac Upp Upp War Pro Fac Ext Cet Arc Hub Total 16111 | 78 709 22 479 630 1235 1378 2878 224 1556 387 205 276 109 441 1832 352 189 679 302 151 1278 503 49 169 Wait 1406 | . 33 . . 8 126 337 157 22 40 2 1 . 5 9 280 18 . 1 7 13 236 111 . . Move 13545 | 48 592 21 455 611 920 899 2525 199 1451 372 201 273 94 406 1458 324 187 637 292 131 943 293 49 164 Hop 26 | . . . . . . . 4 . 2 1 . . 1 . 5 . . 4 . . 8 1 . . Pick Up 175 | 9 21 . 18 2 45 26 14 1 3 2 . . . 2 18 2 . 6 . 1 1 4 . . Fast Attach 50 | 3 1 . 1 . 7 9 3 . 2 . . . . . 5 . . 11 . . 2 5 . 1 Attach 61 | 2 3 . . . 9 9 10 . . 2 . . . . 3 . . . . 2 1 19 . 1 Detach 18 | . . . . . 3 2 1 . . . . . . . . . . 1 . . 2 9 . . Swap 108 | 1 7 1 . 2 20 12 21 . 6 . . . . 9 6 . . . . . 18 5 . . Drop 170 | 1 12 . 5 2 16 27 36 1 8 . . . . 1 23 2 . 18 . 1 3 13 . 1 Fire 281 | 14 40 . . 5 82 49 29 . . . . . . 6 . . . . . . 15 41 . . Melee 244 | . . . . . 7 8 78 1 44 8 3 3 9 8 34 6 2 1 3 3 22 2 . 2 Ram . | . . . . . . . . . . . . . . . . . . . . . . . . . Kick . | . . . . . . . . . . . . . . . . . . . . . . . . . Crush . | . . . . . . . . . . . . . . . . . . . . . . . . . Escape Stasis 12 | . . . . . . . . . . . . . . . . . . . . . 12 . . . Rewire 15 | . . . . . . . . . . . . . . . . . . . . . 15 . . . Trap . | . . . . . . . . . . . . . . . . . . . . . . . . . Miscellaneous . | . . . . . . . . . . . . . . . . . . . . . . . . . Route ------- -11/Scrapyard -10/Materials (discovered 5 exits: [*Mat x3] / *Min x2) -10/Mines -10/Exiles -9/Mines -8/Materials (discovered 4 exits: *Fac x3 / *Sto) -8/Storage -7/Factory (discovered 3 exits: *Fac x3) -7/Waste -7/Factory (discovered 3 exits: *Fac x3) -6/Factory (discovered 3 exits: Fac / *Low x2) -6/Lower Caves -6/Lower Caves (discovered 2 exits: Fac / *Dat) -6/Data Miner -5/Proximity Caves -5/Factory (discovered 3 exits: *Fac x2 / *Upp) -5/Upper Caves -5/Upper Caves -5/Warlord -4/Proximity Caves -4/Factory (discovered 2 exits: *Ext / Arm) -4/Extension (discovered 2 exits: [*Res] / *Cet) -4/Cetus (discovered 2 exits: [*Res] / *Arc) -4/Archives -4/Hub_04(d) History --------- Turn | Location | Event 2 | -11/Scrapyard | Met Revision 17 15 | -11/Scrapyard | Discovered new exit (range 16) 91 | -11/Scrapyard | Entered Materials 206 | -10/Materials | Discovered new exit (range 18) 310 | -10/Materials | Build established: Mutant 486 | -10/Materials | Discovered new exit (range 3) 510 | -10/Materials | Discovered new exit (range 5) 632 | -10/Materials | Discovered new exit (range 11) 754 | -10/Materials | Identified exit to Mines 814 | -10/Materials | Discovered new exit (range 8) 959 | -10/Materials | Entered Mines 980 | -10/Mines | Deemed a non-threat by the Exiles lab entrance 981 | -10/Mines | Discovered new exit (range 5) 986 | -10/Mines | Entered Exiles 1014 | -10/Exiles | Met 8R-AWN 1036 | -10/Exiles | Met EX-HEX 1165 | -10/Exiles | Met EX-DEC 1318 | -10/Exiles | Met EX-BIN 1336 | -10/Exiles | Aligned with FarCom system 1337 | -10/Exiles | Given EX-Vault access code 1379 | -10/Exiles | Opened EX-Vault 1388 | -10/Exiles | Build established: Hauler-Mutant 1396 | -10/Exiles | Found Flying Fortress v7 1404 | -10/Exiles | Found AWS/Gauss 1439 | -10/Exiles | Warned to stay clear of 0b10 Research branches 1532 | -10/Exiles | Visited The Gauntlet 1652 | -10/Exiles | Discovered new exit (range 10) 1667 | -10/Exiles | Stole two prototypes: Flying Fortress v7, AWS/Gauss 1667 | -10/Exiles | Entered Mines 1688 | -9/Mines | Learned 2 Materials zone layouts 1804 | -9/Mines | Assisted by bots powering up and referring to "LRC-V3" 1810 | -9/Mines | Destroyed YI-UF0 1824 | -9/Mines | Found Prototype Storage 2153 | -9/Mines | Learned Materials garrison access intel 2234 | -9/Mines | Learned location of Storage (-8) 2600 | -9/Mines | Discovered new exit (range 10) 2611 | -9/Mines | Entered Materials 2611 | -8/Materials | Evolved 4 slots: Propulsion x1, Utility x3 2612 | -8/Materials | Identified exit to Factory 2613 | -8/Materials | Loaded intel: 1 garrison access location 2653 | -8/Materials | Identified YI-UF0's Bottomless Matter Pit 2839 | -8/Materials | Identified exit to Storage 3542 | -8/Materials | Discovered exit to Factory (range 11) 4321 | -8/Materials | Garrison activated, responded to threat 4688 | -8/Materials | Entered Storage 6005 | -8/Storage | Discovered exit to Factory (range 16) 6027 | -8/Storage | Met 01-MTF 6688 | -8/Storage | First assault squad dispatched 6716 | -8/Storage | Assisted by bots powering up and referring to "LRC-V3" 6936 | -8/Storage | Destroyed 01-MTF 6951 | -8/Storage | Found Prototype Device 6958 | -8/Storage | Identified 01-MTF's Autohacker 7032 | -8/Storage | Entered Factory 7032 | -7/Factory | Evolved 2 slots: Power x1, Propulsion x1 7034 | -7/Factory | FarCom data flow suspended 7436 | -7/Factory | Garrison activated, responded to threat 7866 | -7/Factory | Discovered new exit (range 5) 7868 | -7/Factory | Identified exit to Factory 7931 | -7/Factory | Discovered exit to Factory (range 8) 8126 | -7/Factory | Discovered exit to Factory (range 6) 8811 | -7/Factory | Sucked down chute 8811 | -7/Factory | Entered Waste 8812 | -7/Waste | Met a frightened Derelict 8814 | -7/Waste | Spotted C-40 Crusher 8816 | -7/Waste | Spotted C-40 Crusher 8825 | -7/Waste | Met Warlord forces unprepared to attack 8826 | -7/Waste | EMP discharged 8849 | -7/Waste | Spotted C-40 Crusher 8861 | -7/Waste | Spotted C-40 Crusher 8862 | -7/Waste | Spotted C-40 Crusher 8888 | -7/Waste | Allies destroyed C-40 Crusher 8897 | -7/Waste | Allies destroyed C-40 Crusher 8905 | -7/Waste | Spotted C-40 Crusher 8918 | -7/Waste | Allies destroyed C-40 Crusher 8926 | -7/Waste | EMP discharged 8926 | -7/Waste | System corruption reached 10% 8930 | -7/Waste | Discovered new exit (range 16) 8937 | -7/Waste | Identified exit to Factory 8937 | -7/Waste | Entered Factory 9065 | -7/Factory | Discovered exit to Factory (range 15) 9233 | -7/Factory | Discovered exit to Factory (range 15) 9459 | -7/Factory | Discovered exit to Factory (range 7) 9841 | -7/Factory | Entered another Factory area 9841 | -6/Factory | Evolved 2 slots: Utility x2 9849 | -6/Factory | Identified exit to Lower Caves 9958 | -6/Factory | Discovered new exit (range 17) 10055 | -6/Factory | Entered Lower Caves 10146 | -6/Lower Caves | Discovered new exit (range 23) 10148 | -6/Lower Caves | Build established: Hauler-Scout 10164 | -6/Lower Caves | Identified exit to Lower Caves 10164 | -6/Lower Caves | Spotted B-75 Beast 10165 | -6/Lower Caves | Entered another Lower Caves area 10182 | -6/Lower Caves | Discovered new exit (range 22) 10302 | -6/Lower Caves | Discovered new exit (range 13) 10309 | -6/Lower Caves | Identified exit to Data Miner 10310 | -6/Lower Caves | Entered Data Miner 10310 | -6/Data Miner | Discovered new exit (range 6) 10320 | -6/Data Miner | Met Data Miner 10331 | -6/Data Miner | Learned location of Section 7 (-2) 10331 | -6/Data Miner | Acquired the access code to Warlord's prototype stash 10340 | -6/Data Miner | Received God Mode back door access code from Data Miner 10349 | -6/Data Miner | Data Conduit disabled 10386 | -6/Data Miner | Identified exit to Proximity Caves 10386 | -6/Data Miner | Entered Proximity Caves 10553 | -5/Proximity Caves | Attracted the attention of an 0b10 checkpoint 10602 | -5/Proximity Caves | Spotted B-75 Beast 10641 | -5/Proximity Caves | Discovered new exit (range 13) 10648 | -5/Proximity Caves | Identified exit to Factory 10648 | -5/Proximity Caves | Entered Factory 10648 | -5/Factory | Evolved 2 slots: Propulsion x1, Utility x1 10925 | -5/Factory | Discovered new exit (range 20) 10951 | -5/Factory | Identified exit to Factory 11313 | -5/Factory | Discovered exit to Factory (range 10) 11347 | -5/Factory | Local fabrication network quarantined 11492 | -5/Factory | Fabricated Lgt. Regenerative Plating (x1) 11579 | -5/Factory | Discovered new exit (range 7) 11581 | -5/Factory | Identified exit to Upper Caves 11582 | -5/Factory | Entered Upper Caves 11584 | -5/Upper Caves | Attracted the attention of an 0b10 checkpoint 11724 | -5/Upper Caves | Discovered new exit (range 11) 11728 | -5/Upper Caves | Identified exit to Upper Caves 11728 | -5/Upper Caves | Entered another Upper Caves area 11793 | -5/Upper Caves | Discovered new exit (range 14) 11797 | -5/Upper Caves | Identified exit to Warlord 11797 | -5/Upper Caves | Entered Warlord 11815 | -5/Warlord | System corruption cleaned by Quarantine Array 11891 | -5/Warlord | Met Warlord 11895 | -5/Warlord | Opened Warlord's prototype stash 11897 | -5/Warlord | Found Prototype Reactor 11897 | -5/Warlord | Identified Vortex Chain Reactor 11906 | -5/Warlord | Found Prototype Device 11906 | -5/Warlord | Identified Exp. Phase Shifter 11915 | -5/Warlord | Found Prototype Hackware 11916 | -5/Warlord | Warlord's base attacked by MAIN.C 11919 | -5/Warlord | Found Prototype Processor 12017 | -5/Warlord | Found Prototype Energy Gun 12017 | -5/Warlord | Identified Vortex Shotgun 12020 | -5/Warlord | Found Prototype Energy Gun 12020 | -5/Warlord | Identified Vortex Rifle 12057 | -5/Warlord | Discovered new exit (range 14) 12061 | -5/Warlord | Identified exit to Proximity Caves 12061 | -5/Warlord | Entered Proximity Caves 12179 | -4/Proximity Caves | Discovered exit to Factory (range 17) 12184 | -4/Proximity Caves | Entered Factory 12184 | -4/Factory | Evolved 2 slots: Propulsion x1, Utility x1 12185 | -4/Factory | Identified exit to Armory 12242 | -4/Factory | Discovered new exit (range 13) 12246 | -4/Factory | Identified exit to Extension 12246 | -4/Factory | Entered Extension 12284 | -4/Extension | Spotted B-86 Titan 12337 | -4/Extension | Identified Exp. Target Analyzer 12410 | -4/Extension | Rescued A7 12449 | -4/Extension | Remotely autohacked Sealed Heavy Doors 12449 | -4/Extension | Rescued a captive Derelict 12451 | -4/Extension | Rescued a captive Derelict 12516 | -4/Extension | Rescued a captive Derelict 12557 | -4/Extension | Remotely autohacked Sealed Heavy Doors 12557 | -4/Extension | Rescued a captive Derelict 12559 | -4/Extension | Rescued a captive Derelict 12687 | -4/Extension | Extracted ID and sensor layout for unrecognized location from A7's data core 12779 | -4/Extension | Remotely autohacked Sealed Heavy Doors 12780 | -4/Extension | Rescued a captive Derelict 12900 | -4/Extension | Discovered new exit (range 10) 12901 | -4/Extension | Discovered new exit (range 6) 12902 | -4/Extension | Identified exit to Cetus 12907 | -4/Extension | Found Quantum Capacitor 12923 | -4/Extension | Entered Cetus 12929 | -4/Cetus | Spotted Cetus Guard 12929 | -4/Cetus | Spotted Cetus Guard 12929 | -4/Cetus | Spotted Cetus Guard 12933 | -4/Cetus | Spotted Cetus Guard 12944 | -4/Cetus | Destroyed Cetus Guard 12949 | -4/Cetus | Destroyed Cetus Guard 12949 | -4/Cetus | Destroyed Cetus Guard 12950 | -4/Cetus | Destroyed Cetus Guard 12972 | -4/Cetus | Identified Ghost Barrier 13003 | -4/Cetus | Remotely autohacked Sealed Heavy Doors 13038 | -4/Cetus | Discovered new exit (range 16) 13042 | -4/Cetus | Spotted Cetus Guard 13042 | -4/Cetus | Spotted Cetus Guard 13054 | -4/Cetus | Spotted Cetus Guard 13059 | -4/Cetus | Spotted Cetus Guard 13060 | -4/Cetus | Destroyed Cetus Guard 13074 | -4/Cetus | Destroyed Cetus Guard 13080 | -4/Cetus | Destroyed Cetus Guard 13105 | -4/Cetus | Destroyed Cetus Guard 13109 | -4/Cetus | Core integrity fell below 50% 13113 | -4/Cetus | Discovered new exit (range 15) 13140 | -4/Cetus | Lost 6 parts (1p2n2u1w) 13144 | -4/Cetus | Destroyed 7 combat bots 13265 | -4/Cetus | Released all parts (8) 13273 | -4/Cetus | Entered Archives 13282 | -4/Archives | Core integrity fell below 20% 13282 | -4/Archives | Unable to access archive contents 13283 | -4/Archives | Discovered new exit (range 16) 13288 | -4/Archives | Entered Hub_04(d) 13295 | -4/Hub_04(d) | Lost 5 parts (4n1u) 13314 | -4/Hub_04(d) | Spotted B-86 Titan 13345 | -4/Hub_04(d) | Destroyed by S-27 Virus with Autogun Last Messages --------------- 13283_ Slug penetrates Y-72 Warden. 13283_ Archive Hub disabled. 13285_ Slug penetrates Wall. LOCATION=UNKNOWN GOAL=ESCAPE 13296_ Acquired Prototype Storage. 13296_ Identified Imp. Matter Compressor. 13297_ Dropped Imp. Matter Compressor. 13306_ Connecting with Terminal... 13306_ Current location identified: Hub_04(d) 13314_ Terminal disabled. 13314_ Slug penetrates Terminal. 13315_ K-01 Serf collects debris. 13317_ Slug penetrates Wall. 13320_ K-01 Serf collects debris. 13321_ W-44 Eye sends out distress signal. 13325_ K-01 Serf collects debris. 13327_ Connecting with Terminal... 13328_ K-01 Serf cleans the Control Node. 13333_ K-01 Serf collects debris. Map ----- +----------------------------------------------------+ | " #?????????????????????????????????????????? | | #?????????????????????????????????????????? | | #?????????????????????????????????????????? | | #?????????????????????????????????????????? | | #### #?????????????????????????????????????????? | | # ###???????????????????????????????????????? | | + T#???????????????????????????????????????? | | # ""#?##########?/??????????????????????????? | | #### ###?# #? ??????????????????????????? | | #??# ##### #? ??????????????????????????? | | ?# / """" ## ??????????????????????????? | | ?# ###### """" ## ??????????????????????????? | | # #????# """" ## #####????#????????????????? | | # ###### """" ## +??? ?????????????????? | | ! + # ## ????=?????????????????? | | = # # / ????=??????????????????? | | ## ### + ## ?????=??????????????????? | | ??# #?# #######+### #????s##?????????????????? | | ??# #?# #?????# #?# #???? #?????????????????? | | #???#/## ###### ### #??? #?????????????????? | | ???? # T" #?? #?????????????????? | | ???? # " # #?????????????????? | | ????" # ########## + ]#?????????????????? | | ???? ## ##????????# # ! #?????????????????? | | ????" ## #?????????# ##;#####?????????????????? | | ???? ## #?????#####//#@####???????????????????? | | ???"" ## ??????# s #???????????????????? | | ???? ## ??????# !#???????????????????? | | ?????+## ??????# " #???????????????????? | | ???????? ????????# """ #???????????????????? | | ?????????????????# """"" #???????????????????? | | ?????????????????# """"""" #???????????????????? | | ?????????????????# """"" #???????????????????? | | ?????????????????# ?""" #???????????????????? | | ?????????????????# ???? #???????????????????? | | ?????????????????# ??????? #???????????????????? | | ?????????????????#????????####???????????????????? | | ?????????????????????????????????????????????????? | | ?????????????????????????????????????????????????? | | ?????????????????????????????????????????????????? | | ?????????????????????????????????????????????????? | | ?????????????????????????????????????????????????? | | | | | | | | | | | | | | | | | +----------------------------------------------------+ Best States ------------- Heat Dissipation 69 Energy Generation 55 Energy Capacity 1300 Matter Stores 300 Matter Capacity 300 Sight Range 16 Robot Scan Range 16 Terrain Scan Range 24 Terrain Scan Density 210 Armor Coverage 450 Phase Shifting 20 Evasion (%) 84 Targeting Accuracy 5 Target Analysis 12 Recoil Reduction 3 Defensive Hacking 32 Item Schematics ----------------- Hcp. Storage Unit | -10/Materials | Hacked Adv. Sensor Array | -8/Materials | Hacked Adv. Terrain Scanner | -8/Materials | Hacked Combat Drone Bay | -6/Data Miner | Free Lgt. Regenerative Plating | -6/Data Miner | Free Exp. Flexi-carbon Leg | -6/Data Miner | Free Exp. Cesium-ion Thruster | -6/Data Miner | Free Exp. Sensor Array | -6/Data Miner | Free Exp. Terrain Scanner | -6/Data Miner | Free Exp. Targeting Computer | -6/Data Miner | Free Triangulator | -6/Data Miner | Free Exp. Transmission Jammer | -6/Data Miner | Free Cloaking Device | -6/Data Miner | Free Plasma Sword | -6/Data Miner | Free Robot Schematics ------------------ S-27 Virus | -6/Data Miner | Free G-50 Soldier | -6/Data Miner | Free G-67 Veteran | -6/Data Miner | Free P-70 Sage | -6/Data Miner | Free I-36 Angel | -6/Data Miner | Free I-47 Archangel | -6/Data Miner | Free X-72 Disruptor | -6/Data Miner | Free Fabricated ------------ Lgt. Regenerative Plating | x1 | -5/Factory Alien Tech Used ----------------- None Achievements -------------- A Powerful Ally? Left-hand Path Reappropriation Challenges ------------ None Game ------ Seed PhaseDisruptorLance Manual? 0 Play Time 03:19:52 Cumulative 155.8 hours Start 2020.08.28 @ 23:36:46 End 2020.08.29 @ 03:21:09 Sessions 1 Manual Loads 0 Difficulty Rogue Special Mode None Game No. 183 Rogue 183 Adventurer 0 Explorer 0 Win Type - Total 2 Types 2/0/0/0/0/0/0 Lore% 61 Gallery% 71 Achievement% 52 Wizard Run 0 Options --------- ASCII 0 Keyboard 0 Movement Numpad Keybinds 0 Fullscreen 2 Font 24/Smallcaps Map View 76x50 Tactical HUD 1 Map Filters NONE Filters NONE Steam 1 RUN: 6f1abf66-cb73-49be-af84-78c3be5ef13c